bitfinex/quotes_ETHUSD_20251012
["timestamp","ask_amount","ask_price","bid_price","bid_amount"]
[1760308281362,1e-08,4139.0,4138.9,5.40240089]
[1760308282254,0.001,4140.8,4138.9,2.9863]
[1760308282470,0.001,4140.8,4140.7,3.28565059]
[1760308282976,0.001,4140.8,4140.7,3.71835059]
[1760308283173,0.001,4141.6,4141.1,0.6336]
[1760308283383,0.001,4141.6,4141.5,3.04818408]
[1760308283587,0.001,4142.1,4142.0,2.41429261]
[1760308283789,0.005,4143.9,4142.6,0.6336]
[1760308284004,0.005,4143.9,4143.8,0.8706]
[1760308284203,0.005,4143.9,4143.8,3.28384388]
[1760308284428,0.005,4143.9,4143.8,3.83654388]
[1760308285076,0.005,4143.9,4143.8,3.71654388]
[1760308285275,0.005,4144.9,4144.8,0.6336]
[1760308285917,0.005,4144.9,4143.9,2.3527]
[1760308285918,2.41765317,4144.9,4144.0,0.6336]
[1760308286123,2.41285479,4144.5,4143.3,0.6697]
[1760308286410,2.41291704,4144.4,4143.4,0.6336]
[1760308286704,2.4130874,4144.1,4143.4,0.6336]
[1760308286880,0.005,4144.9,4143.6,0.6336]
[1760308287067,2.41290247,4144.4,4143.6,0.6336]
[1760308287272,0.24129025,4144.3,4143.6,0.6336]
[1760308287502,2.41290171,4144.4,4143.6,0.6336]
[1760308287692,1.92,4144.8,4143.6,0.6336]
[1760308287894,2.41294687,4144.4,4143.6,0.6336]
[1760308288209,0.24129469,4144.3,4143.6,0.6336]
[1760308288600,2.41312191,4144.1,4143.6,0.6336]
[1760308288904,2.41318943,4143.9,4143.4,0.6336]
[1760308289105,2.41311993,4144.1,4143.4,0.6336]
[1760308289305,2.41278435,4144.6,4143.6,0.6336]
[1760308289512,0.43327843,4144.5,4143.4,0.6336]
[1760308289716,0.005,4144.9,4144.3,0.6336]
[1760308290136,0.005,4144.9,4144.5,3.04643628]
[1760308290290,0.005,4144.9,4144.5,2.41283628]
[1760308290486,0.005,4144.9,4144.8,0.6336]
[1760308291909,10.08448,4144.7,4142.9,0.237]
[1760308292101,1.92,4144.4,4142.8,0.4327]
[1760308292345,0.005,4144.9,4143.4,2.4134259]
[1760308292346,2.41267561,4144.8,4143.4,2.4134259]
[1760308292537,0.005,4144.9,4144.6,2.41273038]
[1760308292718,0.005,4144.9,4144.7,0.6336]
[1760308293018,0.005,4144.9,4143.5,0.6697]
[1760308293019,0.005,4144.9,4144.1,0.6336]
[1760308293206,0.005,4144.9,4144.7,0.4327]
[1760308293910,2.41266164,4144.8,4144.2,0.6336]
[1760308294108,2.41273515,4144.7,4144.2,0.6336]
[1760308294295,2.41272752,4144.7,4144.2,0.4327]
[1760308294496,0.2478494,4144.9,4144.4,0.6336]
[1760308294812,0.2478494,4144.9,4144.4,0.4327]
[1760308295124,0.2478494,4144.9,4144.6,0.6336]
[1760308295422,2.41270158,4144.8,4144.6,0.6336]
[1760308295617,2.67877495,4144.7,4144.6,0.6336]
[1760308295921,0.2660551,4144.7,4144.6,0.6336]
[1760308296100,2.41266164,4144.8,4144.6,0.6336]
[1760308296296,0.006,4144.9,4144.6,0.6336]
[1760308296501,2.41860928,4144.9,4144.6,0.6336]
[1760308296900,0.006,4144.9,4144.6,0.6336]
[1760308297288,2.41863275,4144.9,4144.6,0.6336]
[1760308297509,2.41266798,4144.8,4144.6,0.6336]
[1760308297912,0.006,4144.9,4144.6,0.6336]
[1760308298116,0.006,4144.9,4144.8,0.6336]
[1760308298523,0.006,4144.9,4144.8,0.4327]
[1760308298755,0.001,4145.2,4144.8,2.84536164]
[1760308299014,0.125,4146.9,4145.6,3.04579606]
[1760308299219,0.005,4146.9,4145.7,3.04573787]
[1760308299534,0.005,4146.9,4146.1,0.6336]
[1760308299718,0.005,4146.9,4146.8,0.8644]
[1760308299923,0.005,4146.9,4146.8,0.9844]
[1760308300230,0.005,4146.9,4146.8,1.4593]
[1760308301222,0.005,4146.9,4146.8,1.2285]
[1760308301424,0.005,4146.9,4146.8,0.6336]
[1760308302131,0.005,4146.9,4146.8,3.63999802]
[1760308302330,0.001,4147.6,4147.5,3.04469101]
[1760308302530,0.001,4147.6,4147.5,0.7536]
[1760308302735,0.001,4147.6,4147.5,3.63959101]
[1760308303132,0.001,4147.6,4147.5,3.51959101]
[1760308304102,0.001,4147.6,4147.5,1.1085]
[1760308304516,0.001,4147.6,4147.5,3.51959101]
[1760308306320,0.001,4147.6,4147.5,1.1085]
[1760308306522,0.001,4147.6,4147.5,3.51959101]
[1760308306766,0.001,4147.6,4147.5,1.1085]
[1760308306923,0.001,4147.6,4147.5,3.51959101]
[1760308307124,0.001,4147.6,4147.5,1.1085]
[1760308307543,0.001,4147.6,4147.5,3.51959101]
[1760308307856,0.001,4147.6,4147.5,1.1085]
[1760308308058,0.001,4147.6,4146.8,0.4747]
[1760308308243,2.41109101,4147.5,4146.1,0.7055]
[1760308308555,1.92,4147.3,4145.9,0.2297]
[1760308308784,13.36869431,4147.4,4144.1,2.41802575]
[1760308308785,2.41179002,4146.3,4145.5,0.2297]
[1760308308955,0.241179,4146.2,4145.5,0.2297]
[1760308309256,2.41126543,4147.2,4145.8,2.41206844]
[1760308309428,1.92,4147.2,4145.9,0.4747]
[1760308309628,2.41171764,4146.5,4145.9,0.4747]
[1760308309830,2.41173065,4146.4,4145.1,3.11687358]
[1760308310029,2.41148297,4146.9,4145.9,2.41197269]
[1760308310257,2.41148297,4146.9,4145.7,2.41213014]
[1760308310258,2.41164249,4146.6,4145.2,2.41242883]
[1760308310469,2.4107822,4148.1,4145.4,2.41231244]
[1760308310776,2.41203369,4147.6,4146.1,0.6336]
[1760308310923,2.41160186,4146.7,4145.8,2.41206888]
[1760308311126,2.41161913,4146.6,4145.6,2.41214888]
[1760308311346,1.92,4147.0,4145.5,2.88693448]
[1760308311628,2.41178882,4146.3,4144.8,0.4747]
[1760308311942,2.41201592,4146.0,4145.0,2.41249738]
[1760308312131,0.001,4146.3,4144.6,0.2297]
[1760308312132,0.001,4146.3,4145.1,0.4747]
[1760308312687,2.4121406,4145.7,4145.1,0.4747]
[1760308312990,0.001,4146.3,4145.1,0.4747]
[1760308313162,0.001,4146.3,4145.7,0.6336]
[1760308313357,0.001,4146.3,4145.2,0.6336]
[1760308313554,0.12,4145.7,4145.0,0.12]
[1760308313772,2.53198647,4146.0,4145.4,0.6336]
[1760308313981,0.4944786,4146.0,4144.7,2.41271985]
[1760308314206,0.12,4145.7,4145.0,0.12]
[1760308314354,2.41219606,4145.6,4145.0,0.12]
[1760308314557,0.12,4145.7,4145.0,0.12]
[1760308314795,2.53214952,4145.7,4145.1,0.6336]
[1760308314969,2.41226213,4145.5,4145.1,0.6336]
[1760308315166,2.41248703,4145.1,4145.0,0.12]
[1760308315461,0.12,4145.2,4144.5,0.12]
[1760308315669,0.12,4145.6,4145.0,0.4747]
[1760308315874,0.12,4145.6,4145.1,0.6336]
[1760308316074,0.12,4145.6,4145.0,0.6336]
[1760308316308,0.001,4146.3,4145.0,0.6336]
[1760308316309,0.001,4146.3,4145.7,0.6336]
[1760308316656,0.001,4146.3,4145.1,0.4747]
[1760308316657,0.001,4146.3,4145.3,0.6336]
[1760308316975,0.001,4146.3,4146.0,0.6336]
[1760308317180,0.001,4146.3,4146.1,0.6336]
[1760308317357,0.001,4146.3,4145.8,0.6336]
[1760308317556,0.001,4146.3,4146.2,3.04544699]
[1760308317752,0.001,4146.3,4146.2,0.6336]
[1760308317956,0.001,4146.3,4146.2,3.52014699]
[1760308319588,0.001,4146.3,4146.2,3.04544699]
[1760308319892,0.001,4146.3,4146.2,3.52014699]
[1760308321004,0.001,4146.3,4146.2,0.6336]
[1760308321204,0.001,4146.8,4146.3,3.04538882]
[1760308321504,0.001,4146.8,4146.7,3.04515617]
[1760308321870,0.001,4147.2,4146.7,3.04515617]
[1760308321871,0.001,4147.2,4146.8,2.5536]
[1760308322103,0.001,4147.6,4147.5,3.04469101]
[1760308322484,0.001,4147.6,4147.5,3.51939101]
[1760308322871,0.001,4147.6,4147.5,0.6336]
[1760308323096,0.001,4147.6,4147.5,3.51939101]
[1760308323272,0.001,4147.6,4147.5,1.1083]
[1760308323473,0.001,4147.6,4145.0,2.41254373]
[1760308323837,2.41114915,4147.4,4146.1,0.4747]
[1760308324011,0.24121491,4147.3,4146.2,0.4747]
[1760308324171,1.921,4147.6,4146.6,2.41156061]
[1760308324373,0.001,4147.6,4147.0,2.41137435]
[1760308324572,0.001,4147.6,4146.7,0.4747]
[1760308324812,0.4896,4147.5,4146.1,0.4747]
[1760308325010,2.41119271,4147.4,4146.5,2.41161461]
[1760308325311,2.41122131,4147.3,4146.5,2.41161461]
[1760308325493,2.41122131,4147.3,4146.3,2.41177004]
[1760308325494,0.001,4147.6,4146.9,2.41139359]
[1760308325704,0.001,4147.6,4147.1,0.6336]
[1760308326010,0.001,4147.6,4147.1,3.04491749]
[1760308326196,0.121,4147.6,4147.1,3.04491749]
[1760308326397,0.121,4147.6,4146.2,2.41180082]
[1760308326398,2.67879101,4147.5,4146.0,0.6336]
[1760308326612,2.41141475,4147.0,4146.6,0.7536]
[1760308326927,2.41135074,4147.1,4146.6,0.7536]
[1760308327213,2.41161777,4146.6,4145.9,0.4747]
[1760308327376,0.12,4146.9,4146.2,0.12]
[1760308327939,2.53144177,4146.9,4146.3,0.6336]
[1760308328145,0.12,4146.9,4146.3,0.6336]
[1760308328445,0.12,4147.4,4146.9,0.6336]
[1760308328638,0.12,4147.4,4146.8,0.6336]
[1760308328819,1.92,4147.3,4146.8,0.6336]
[1760308329137,0.12,4147.4,4147.0,0.6336]
[1760308329739,0.001,4147.6,4147.2,0.12]
[1760308329938,0.12,4147.4,4146.7,0.12]
[1760308330240,0.12,4147.4,4146.8,0.6336]
[1760308330537,0.12,4147.4,4146.0,2.41194842]
[1760308330538,2.4115432,4146.8,4146.0,2.41195921]
[1760308330742,2.41155286,4146.8,4146.2,0.12]
[1760308330910,2.41155286,4146.8,4146.3,0.6336]
[1760308331106,0.29640529,4146.8,4146.2,0.12]
[1760308331419,2.41175465,4146.4,4145.6,2.41218157]
[1760308331747,0.4325,4146.3,4145.1,0.002]
[1760308331948,2.41230548,4145.5,4145.1,0.002]
[1760308332239,2.41232401,4145.4,4145.1,0.002]
[1760308332405,0.91384645,4145.4,4145.1,0.002]
[1760308332609,0.4314,4145.3,4145.1,0.002]
[1760308332810,2.41241907,4145.3,4145.1,0.002]
[1760308333040,2.84382883,4145.2,4145.1,0.002]
[1760308333245,2.41242883,4145.2,4145.1,0.002]
[1760308334549,15.90204332,4145.2,4145.1,0.002]
[1760308334752,5.43830532,4145.2,4145.1,0.002]
[1760308335473,8.77511932,4145.2,4145.1,0.002]
[1760308335762,7.93684485,4144.7,4144.6,0.002]
[1760308336064,8.51024719,4144.7,4144.6,0.002]
[1760308336364,8.94164719,4144.7,4144.6,0.002]
[1760308336728,27.65502819,4144.7,4144.6,0.002]
[1760308337149,14.73183819,4144.7,4144.6,0.002]
[1760308337320,5.79906819,4144.7,4144.6,0.002]
[1760308337650,8.51685919,4144.7,4144.6,0.002]
[1760308338860,16.99822019,4144.7,4144.6,0.002]
[1760308339222,4.166041,4144.2,4144.1,1e-08]
[1760308339455,17.10330168,4144.2,4144.1,1e-08]
[1760308339619,1.92,4144.2,4144.1,1e-08]
[1760308339820,4.76441095,4144.2,4144.1,1e-08]
[1760308340317,1.92,4144.2,4144.1,1e-08]
[1760308340517,4.33301095,4144.2,4144.1,1e-08]
[1760308340825,4.76441095,4144.2,4144.1,1e-08]
[1760308341219,5.48214449,4144.2,4144.1,1e-08]
[1760308341639,2.3514,4144.2,4144.1,1e-08]
[1760308341847,1.92,4144.2,4144.1,1e-08]
[1760308342045,4.76441095,4144.2,4144.1,1e-08]
[1760308342245,1.92,4144.2,4144.1,1e-08]
[1760308342997,0.4314,4145.2,4144.1,1e-08]
[1760308343294,0.4314,4145.9,4144.6,0.12]
[1760308343500,0.12,4145.2,4144.6,0.12]
[1760308343703,0.12,4145.7,4145.0,0.12]
[1760308343991,0.4314,4147.2,4145.6,0.6336]
[1760308344146,0.12,4146.5,4145.6,0.12]
[1760308344349,0.12,4146.5,4144.1,0.21860001]
[1760308344350,0.12,4145.6,4144.8,0.12]
[1760308344549,0.12,4145.6,4145.0,0.6336]
[1760308344762,2.41227886,4145.5,4145.0,0.6336]
[1760308344988,0.12,4145.6,4144.9,3.04615823]
[1760308345457,2.41150866,4146.8,4145.1,0.6336]
[1760308345650,2.41168875,4146.5,4145.7,0.6336]
[1760308346051,2.41174016,4146.4,4145.7,0.6336]
[1760308346245,2.41179122,4146.3,4145.6,0.6336]
[1760308346473,0.4314,4147.1,4145.6,0.6336]
[1760308346661,2.41223701,4145.6,4144.5,0.6336]
[1760308346861,2.41231824,4145.4,4144.5,0.6336]
[1760308347079,2.41231824,4145.4,4144.5,3.04640693]
[1760308347405,0.4314,4145.5,4144.1,1e-08]
[1760308347691,1.92,4144.9,4144.1,0.00200001]
[1760308347985,4.33250038,4145.1,4144.1,2.41506281]
[1760308348278,2.3514,4145.5,4144.1,0.00200001]
[1760308348490,2.41255455,4145.0,4144.3,0.6336]
[1760308348694,2.65381,4145.0,4144.3,0.6336]
[1760308348855,1.92,4144.9,4144.3,0.6336]
[1760308349053,0.223,4145.6,4144.6,0.6336]
[1760308349257,0.223,4145.6,4144.2,2.41296775]
[1760308349258,3.22821,4145.6,4144.2,2.41296775]
[1760308349564,2.41253964,4145.1,4144.2,2.41296775]
[1760308349879,2.41262609,4144.9,4144.2,0.6336]
[1760308350184,2.41252577,4145.1,4144.4,0.6336]
[1760308350580,2.41252577,4145.1,4144.5,0.6336]
[1760308350785,0.388251,4145.5,4144.5,0.6336]
[1760308350974,2.41247252,4145.2,4144.6,0.6336]
[1760308351174,2.41238361,4145.3,4144.6,0.6336]
[1760308351392,1.92,4145.6,4144.6,0.6336]
[1760308351572,1.92,4145.6,4145.0,0.6336]
[1760308351779,2.41273391,4146.4,4145.2,0.6336]
[1760308351950,2.41183308,4146.3,4145.3,2.41237063]
[1760308352156,0.001,4146.4,4145.9,0.6336]
[1760308352355,0.001,4146.4,4145.8,3.04566703]
[1760308353594,0.001,4146.4,4145.4,0.6336]
[1760308353595,0.86836917,4146.4,4145.4,0.6336]
[1760308353913,2.4122639,4145.5,4144.2,0.4366]
[1760308354270,2.41207969,4145.8,4145.0,2.41249679]
[1760308354468,2.41214147,4145.7,4145.0,2.41249679]
[1760308354654,2.41209499,4145.8,4145.1,3.04608312]
[1760308354860,2.41214706,4145.7,4145.1,0.6336]
[1760308355090,0.4324,4146.4,4145.0,0.6336]
[1760308355294,2.39640211,4146.3,4145.0,0.6336]
[1760308355619,2.4122949,4145.5,4145.0,0.7536]
[1760308355815,2.41184111,4146.3,4144.1,2.63362694]
[1760308355816,0.223,4145.1,4144.1,0.00200001]
[1760308355959,1.92,4145.3,4144.2,0.2186]
[1760308356162,0.4314,4146.0,4144.5,2.41282345]
[1760308356417,2.41232947,4145.4,4144.8,0.6336]
[1760308356714,2.41264777,4144.9,4144.1,2.41502843]
[1760308357012,0.4314,4145.3,4144.3,0.6336]
[1760308358046,1.92,4145.2,4144.1,0.63560001]
[1760308358206,1.92,4145.5,4144.4,0.6336]
[1760308358539,2.41254975,4145.0,4144.5,0.6336]
[1760308358831,2.41249227,4145.1,4144.4,3.04649449]
[1760308359131,2.41244363,4145.2,4144.6,0.6336]
[1760308359297,1.92,4145.3,4144.5,0.6336]
[1760308359496,2.41247086,4145.2,4144.5,0.6336]
[1760308359694,1.92,4145.3,4144.4,0.6336]
[1760308359901,2.41219912,4145.6,4144.9,0.6336]
[1760308360204,0.4324,4146.4,4145.0,0.4369]
[1760308360417,0.4324,4146.4,4145.4,0.6336]
[1760308360619,0.001,4146.4,4145.6,0.6336]
[1760308360795,2.41208689,4145.8,4145.6,0.6336]
[1760308360995,2.41203681,4145.9,4145.1,3.04607706]
[1760308361446,2.41231668,4145.4,4144.6,2.41272946]
[1760308361630,2.41226466,4145.5,4144.8,3.04626051]
[1760308361832,1.92,4145.8,4144.8,0.6336]
[1760308361998,0.6564,4145.9,4144.8,0.6336]
[1760308361999,2.41220158,4145.6,4144.8,0.6336]
[1760308362195,2.41259847,4145.0,4144.1,0.00200001]
[1760308362398,2.41231244,4145.4,4144.5,2.4128338]
[1760308362597,0.4273,4145.5,4144.6,0.6336]
[1760308362598,2.41237389,4145.3,4144.6,0.6336]
[1760308362829,2.41244428,4145.2,4144.6,0.6336]
[1760308363032,2.93757863,4145.3,4144.6,3.04637674]
[1760308363221,2.93757863,4145.3,4144.6,2.41277674]
[1760308363416,2.41245234,4145.2,4144.6,0.6336]
[1760308364121,2.41248817,4145.1,4144.5,0.6336]
[1760308364635,2.41254839,4145.0,4144.3,0.6336]
[1760308364939,2.41250525,4145.1,4144.3,0.6336]
[1760308365334,2.41250525,4145.1,4144.4,2.41284728]
[1760308365642,0.001,4145.4,4145.1,0.6336]
[1760308365797,0.001,4145.4,4145.2,0.6336]
[1760308366002,0.001,4145.4,4145.3,3.04597063]
[1760308366525,0.001,4145.9,4145.8,3.04567969]
[1760308367109,0.001,4145.9,4145.8,3.49157969]
[1760308368510,0.001,4145.9,4145.8,0.6336]
[1760308368711,0.001,4145.9,4145.8,3.04567969]
[1760308369137,0.001,4145.9,4145.8,3.49157969]
[1760308369620,0.001,4145.9,4145.8,3.04567969]
[1760308370813,0.001,4145.9,4145.8,3.49157969]
[1760308371428,0.001,4145.9,4144.9,0.4459]
[1760308371837,0.001,4145.9,4145.6,0.6336]
[1760308372248,0.001,4145.9,4145.4,0.6336]
[1760308372540,0.001,4145.9,4145.5,0.6336]
[1760308373110,2.41209312,4145.8,4145.3,0.6336]
[1760308373451,2.41303482,4145.9,4145.3,0.6336]
[1760308374018,0.001,4145.9,4145.4,0.6336]
[1760308374653,0.001,4145.9,4145.3,0.6336]
[1760308374957,2.41230015,4145.5,4144.8,2.41265154]
[1760308375152,0.001,4145.9,4145.3,0.6336]
[1760308375448,2.41306473,4145.9,4145.3,0.6336]
[1760308376257,0.12,4145.8,4145.3,0.6336]
[1760308376471,0.12,4145.8,4145.2,0.6336]
[1760308376756,0.12,4145.8,4145.2,3.04602859]
[1760308377245,0.001,4145.9,4145.8,0.6336]
[1760308377445,0.001,4145.9,4145.3,2.41236414]
[1760308377620,0.001,4145.9,4145.4,0.6336]
[1760308377815,0.001,4145.9,4145.4,2.41230096]
[1760308378133,0.001,4145.9,4145.5,0.6336]
[1760308378334,0.001,4145.9,4145.0,0.6336]
[1760308378645,0.001,4145.9,4145.4,2.41230164]
[1760308378828,0.001,4145.9,4145.5,0.6336]
[1760308379150,0.001,4145.9,4145.5,2.41224367]
[1760308379538,0.001,4145.9,4145.5,0.6336]
[1760308380275,2.41303273,4145.9,4145.4,0.6336]
[1760308380479,0.001,4145.9,4145.4,0.6336]
[1760308380678,0.001,4145.9,4145.0,0.6336]
[1760308380884,0.001,4145.9,4145.6,3.0457574]
[1760308381047,0.001,4145.9,4145.3,0.6336]
[1760308381048,2.41302237,4145.9,4145.3,0.6336]
[1760308381248,0.2079,4145.8,4144.1,0.67050001]
[1760308381585,3.0625883,4145.8,4144.8,2.41261362]
[1760308381797,2.41302283,4145.9,4144.9,1.0795]
[1760308381976,2.41302822,4145.9,4145.2,0.6336]
[1760308382152,0.001,4145.9,4145.2,0.6336]
[1760308382347,0.001,4145.9,4145.2,2.4124236]
[1760308383158,0.001,4145.9,4145.3,2.41433083]
[1760308383350,0.001,4145.9,4145.3,0.002]
[1760308383576,0.001,4145.9,4145.5,0.6336]
[1760308383777,0.001,4145.9,4145.4,2.85821244]
[1760308383778,0.001,4145.9,4145.8,3.04567969]
[1760308384289,0.001,4146.9,4146.5,0.6336]
[1760308384488,0.001,4146.9,4146.8,3.26349802]
[1760308384853,0.001,4146.9,4146.8,3.70939802]
[1760308385274,0.001,4146.9,4146.8,1.0795]
[1760308385587,0.001,4146.9,4146.8,3.49099802]
[1760308387299,0.001,4146.9,4146.8,3.16509802]
[1760308387651,0.001,4146.9,4146.8,3.61099802]
[1760308388559,0.001,4146.9,4146.8,3.49099802]
[1760308395911,0.001,4146.9,4146.8,2.41149802]
[1760308396383,0.001,4146.9,4146.8,0.6336]
[1760308396780,0.001,4146.9,4146.8,3.04509802]
[1760308396980,0.001,4146.9,4146.8,3.50899802]
[1760308398511,0.001,4146.9,4146.8,3.62899802]
[1760308398698,0.001,4146.9,4146.8,0.6336]
[1760308399038,0.001,4146.9,4146.8,3.50899802]
[1760308399218,0.001,4146.9,4146.8,1.0975]
[1760308399591,0.001,4146.9,4146.8,3.50899802]
[1760308400403,0.001,4146.9,4146.8,0.6336]
[1760308400711,0.001,4146.9,4146.3,0.002]
[1760308401095,0.001,4146.9,4146.5,0.6336]
[1760308401603,0.24223312,4146.9,4146.4,0.6336]
[1760308401921,0.24223312,4146.9,4146.3,0.002]
[1760308402083,2.41151552,4146.8,4146.3,0.002]
[1760308402514,2.41157274,4146.7,4146.3,0.002]
[1760308402725,0.001,4146.9,4146.7,2.41149907]
[1760308402938,0.001,4146.9,4146.8,1.0975]
[1760308404127,0.001,4146.9,4146.8,3.50899802]
[1760308408615,0.001,4146.9,4146.8,3.62899802]
[1760308412233,0.001,4146.9,4146.8,5.54899802]
[1760308412414,0.001,4147.6,4147.5,3.04469101]
[1760308412614,0.001,4147.6,4147.5,4.96469101]
[1760308412813,0.001,4147.6,4147.5,5.42859101]
[1760308413622,0.001,4147.6,4147.5,3.50859101]
[1760308422444,0.001,4147.6,4147.5,3.62859101]
[1760308425473,0.001,4147.6,4146.3,0.002]
[1760308425674,0.001,4147.6,4146.4,0.4726]
[1760308426207,0.001,4147.6,4146.3,0.002]
[1760308426418,13.30696431,4147.2,4146.3,0.002]
[1760308426601,17.63869496,4146.4,4146.3,0.002]
[1760308426907,24.06282196,4146.4,4146.3,0.002]
[1760308427133,17.35863333,4146.0,4144.9,0.002]
[1760308427295,21.20649666,4146.0,4144.9,0.002]
[1760308427482,18.10118266,4146.0,4144.9,0.002]
[1760308428078,9.85946666,4146.0,4144.9,0.002]
[1760308428688,9.05346666,4146.0,4144.9,0.002]
[1760308428885,7.12560333,4146.0,4144.9,0.002]
[1760308429302,4.74516333,4146.0,4144.9,0.002]
[1760308429504,7.39960333,4146.0,4144.9,0.002]
[1760308429808,6.96560333,4146.0,4144.9,0.002]
[1760308430889,2.41219606,4145.6,4144.9,0.002]
[1760308431215,13.99125023,4145.0,4144.9,0.002]
[1760308431380,1.92,4144.4,4144.1,0.00200001]
[1760308431580,4.33301095,4144.2,4144.1,0.00200001]
[1760308431809,6.53030375,4144.2,4144.1,0.00200001]
[1760308432014,6.93950375,4144.2,4144.1,0.00200001]
[1760308435279,15.04644575,4144.2,4144.1,0.00200001]
[1760308435726,6.93950375,4144.2,4144.1,0.00200001]
[1760308436017,4.74221095,4144.2,4144.1,0.00200001]
[1760308439626,0.001,4144.9,4144.2,0.6336]
[1760308439831,0.12,4144.6,4144.2,0.6336]
[1760308440035,4.33284239,4144.5,4144.2,0.6336]
[1760308440558,1.92,4144.5,4144.2,0.6336]
[1760308440768,0.85447685,4144.5,4144.2,0.6336]
[1760308440967,2.41290164,4144.4,4144.2,0.6336]
[1760308441166,2.41256127,4145.0,4144.3,3.51914706]
[1760308441375,0.12,4145.1,4144.5,0.6336]
[1760308441534,0.001,4145.8,4144.8,3.04626164]
[1760308441728,0.12,4145.6,4144.8,3.16626164]
[1760308441928,0.12,4145.6,4144.8,3.63886164]
[1760308442157,1.921,4145.4,4144.8,0.7536]
[1760308442372,1.921,4145.4,4142.9,9.46372997]
[1760308442373,0.12,4144.8,4144.1,0.12200001]
[1760308442876,4.33277807,4144.6,4144.1,0.00200001]
[1760308443079,2.41301095,4144.2,4144.1,0.00200001]
[1760308443537,4.72721095,4144.2,4144.1,0.00200001]
[1760308446171,26.58317095,4144.2,4144.1,0.00200001]
[1760308446369,15.55991403,4144.2,4144.1,0.00200001]
[1760308446678,6.79297503,4144.2,4144.1,0.00200001]
[1760308446839,4.33301095,4144.2,4144.1,0.00200001]
[1760308447365,4.72721095,4144.2,4144.1,0.00200001]
[1760308447533,11.98783695,4144.2,4144.1,0.00200001]
[1760308448482,7.18798295,4144.2,4144.1,0.00200001]
[1760308449690,4.72721095,4144.2,4144.1,0.00200001]
[1760308449991,8.72832736,4144.2,4144.1,0.00200001]
[1760308451897,5.04702536,4144.2,4144.1,0.00200001]
[1760308452063,5.44122536,4144.2,4144.1,0.00200001]
[1760308454396,0.001,4144.9,4144.1,0.00200001]
[1760308454699,2.41266437,4144.8,4144.3,0.6336]
[1760308455004,2.41284327,4144.5,4144.2,0.6336]
[1760308455209,4.33289733,4144.4,4144.2,0.6336]
[1760308455369,2.41298015,4144.3,4144.1,0.00200001]
[1760308455929,2.80721095,4144.2,4144.1,0.00200001]
[1760308456095,4.72721095,4144.2,4144.1,0.00200001]
[1760308456745,14.33678395,4144.2,4144.1,0.00200001]
[1760308456896,13.84009495,4144.2,4144.1,0.00200001]
[1760308457745,21.64531695,4144.2,4144.1,0.00200001]
[1760308457900,24.10528103,4144.2,4144.1,0.00200001]
[1760308458203,19.99646803,4144.2,4144.1,0.00200001]
[1760308458410,15.28742703,4144.2,4144.1,0.00200001]
[1760308458608,16.36700903,4144.2,4144.1,0.00200001]
[1760308459629,21.08805603,4144.2,4144.1,0.00200001]
[1760308460317,11.97604403,4144.2,4144.1,0.00200001]
[1760308460702,9.51607995,4144.2,4144.1,0.00200001]
[1760308461031,8.41381095,4144.2,4144.1,0.00200001]
[1760308461620,8.41381095,4144.2,4143.8,1e-08]
[1760308461838,18.11865464,4143.9,4143.8,1e-08]
[1760308462040,18.11865464,4143.9,4143.4,0.002]
[1760308462041,2.4134186,4143.5,4143.4,1e-08]
[1760308462215,9.27355461,4143.1,4143.0,1e-08]
[1760308462612,9.66505461,4143.1,4143.0,1e-08]
[1760308464143,6.74911261,4143.1,4143.0,1e-08]
[1760308466914,4.33365161,4143.1,4143.0,1e-08]
[1760308467342,5.43902141,4143.1,4143.0,1e-08]
[1760308468047,5.04752141,4143.1,4143.0,1e-08]
[1760308468255,2.41365161,4143.1,4143.0,1e-08]
[1760308468439,2.41360932,4143.2,4143.0,1e-08]
[1760308468616,2.41365161,4143.1,4143.0,1e-08]
[1760308469619,2.80515161,4143.1,4143.0,1e-08]
[1760308470643,2.41365161,4143.1,4143.0,1e-08]
[1760308471021,2.80515161,4143.1,4143.0,1e-08]
[1760308471344,0.3915,4144.0,4143.0,1e-08]
[1760308471519,2.41306918,4144.1,4143.1,3.04723543]
[1760308471724,0.12,4143.7,4143.1,0.6336]
[1760308472337,0.12,4143.7,4143.3,3.04712063]
[1760308472538,0.12,4143.7,4143.3,0.6336]
[1760308472740,0.12,4143.7,4143.0,0.58830001]
[1760308472741,2.3061,4143.6,4143.0,1e-08]
[1760308472928,2.41365161,4143.1,4143.0,1e-08]
[1760308473719,1.92,4143.3,4143.0,2.4136564]
[1760308474053,2.41336036,4143.6,4143.2,0.6336]
[1760308474430,2.41336036,4143.6,4143.0,0.12000001]
[1760308474431,4.33336036,4143.6,4143.1,0.6336]
[1760308474926,2.41342335,4143.5,4143.1,0.6336]
[1760308475252,1.92,4143.6,4143.1,0.6336]
[1760308475856,2.41345973,4143.5,4143.1,0.6336]
[1760308476366,0.49467682,4143.5,4143.0,0.12000001]
[1760308476569,2.41365161,4143.1,4143.0,1e-08]
[1760308476720,0.001,4144.2,4143.0,1e-08]
[1760308476721,2.41360224,4143.2,4143.0,1e-08]
[1760308477439,0.12,4143.8,4143.1,2.88194985]
[1760308477671,0.12,4143.8,4143.3,2.41348959]
[1760308477880,0.12,4143.8,4143.4,0.6336]
[1760308478026,0.001,4144.9,4143.8,0.6336]
[1760308478027,0.121,4144.2,4143.8,0.6336]
[1760308478222,0.121,4144.2,4143.8,2.88154333]
[1760308478464,0.121,4144.2,4143.6,0.6336]
[1760308478465,0.121,4144.2,4143.9,3.5150735]
[1760308478628,0.121,4144.2,4143.9,1.1019]